bitfinex/quotes_SOLUSD_20260310
["timestamp","ask_amount","ask_price","bid_price","bid_amount"]
[1773149953090,11.09521887,85.9,85.871,1.41627138]
[1773149953275,11.09521887,85.91,85.871,1.41627138]
[1773149953590,0.07768749,85.92,85.852,11.64795228]
[1773149953591,11.09521887,85.88,85.852,11.64795228]
[1773149953771,11.09521887,85.87,85.843,11.64917349]
[1773149954092,11.09521887,85.88,85.843,11.64917349]
[1773149954263,11.09521887,85.87,85.843,11.64917349]
[1773149954464,11.64429022,85.879,85.83,11.19521887]
[1773149954465,11.09521887,85.86,85.83,0.1]
[1773149954663,11.09521887,85.86,85.826,1.41627138]
[1773149954664,11.64429022,85.879,85.807,1.41627138]
[1773149954665,11.09521887,85.84,85.807,1.41627138]
[1773149954876,87.33217665,85.879,85.794,1.41627138]
[1773149954877,11.09521887,85.82,85.794,1.41627138]
[1773149955164,11.09521887,85.82,85.78,11.09521887]
[1773149955483,1.43118961,85.83,85.758,29.15179924]
[1773149955684,3.69383402,85.856,85.758,29.15179924]
[1773149955685,11.09521887,85.82,85.758,29.15179924]
[1773149955872,1.43118961,85.829,85.79,11.09521887]
[1773149956263,12.52640848,85.87,85.821,11.65215972]
[1773149956463,40.75596491,85.877,85.84,11.09521887]
[1773149956889,42.18715452,85.877,85.84,11.09521887]
[1773149957061,11.6445614,85.877,85.85,11.09521887]
[1773149957262,11.09521887,85.88,85.85,11.09521887]
[1773149957495,24.1692074,85.89,85.84,1.31548599]
[1773149957786,11.09521887,85.88,85.85,11.09521887]
[1773149958093,46.55731626,85.916,85.821,40.78255903]
[1773149958094,11.63932986,85.916,85.871,1.31548599]
[1773149958269,11.09521887,85.93,85.9,11.09521887]
[1773149958470,1.43118961,85.968,85.885,11.6433654]
[1773149958471,11.09521887,85.92,85.885,11.6433654]
[1773149958989,1.43118961,85.899,85.847,1.31548599]
[1773149959172,11.09521887,85.86,85.83,12.41070486]
[1773149959373,11.09521887,85.88,85.85,11.09521887]
[1773149959582,1.43118961,85.894,85.85,11.16755822]
[1773149959887,44.67023288,85.98,85.842,1.31548599]
[1773149959888,11.16755822,85.88,85.842,1.31548599]
[1773149960185,3.69383402,85.917,85.848,1.31548599]
[1773149960186,1.43118961,85.895,85.848,1.31548599]
[1773149960390,3.69383402,85.917,85.813,46.61293528]
[1773149960391,11.16755822,85.88,85.839,1.31548599]
[1773149960571,11.16755822,85.88,85.85,11.16755822]
[1773149960770,11.16755822,85.89,85.86,11.16755822]
[1773149960968,1.43118961,85.906,85.87,11.16755822]
[1773149961194,11.64075305,85.906,85.88,11.16755822]
[1773149961395,1.43118961,85.919,85.838,192.22255874]
[1773149961396,11.63900463,85.918,85.89,11.16755822]
[1773149961774,11.63900463,85.918,85.88,12.48304421]
[1773149961983,11.16755822,85.91,85.88,11.16755822]
[1773149962194,12.59874783,85.92,85.89,11.16755822]
[1773149962494,11.16755822,85.91,85.88,11.16755822]
[1773149962702,11.16755822,85.91,85.869,11.64564627]
[1773149962703,11.16755822,85.93,85.9,11.16755822]
[1773149962910,11.16755822,85.94,85.9,11.16755822]
[1773149963081,11.16755822,85.93,85.9,11.16755822]
[1773149963396,1.43118961,85.945,85.91,11.16755822]
[1773149963565,11.16755822,85.93,85.89,11.16755822]
[1773149963780,11.16755822,85.92,85.888,1.31548599]
[1773149964180,11.16755822,85.91,85.88,11.16755822]
[1773149964712,1.43118961,85.909,85.85,11.16755822]
[1773149965008,1.43118961,85.909,85.821,46.60857424]
[1773149965009,1.43118961,85.908,85.87,11.16755822]
[1773149965183,40.73461976,85.922,85.848,87.36371259]
[1773149965184,1.43118961,85.889,85.848,11.64849501]
[1773149965394,11.16755822,85.92,85.85,12.48304421]
[1773149965395,11.16755822,85.89,85.85,12.48304421]
[1773149965602,1.43118961,85.898,85.85,12.48304421]
[1773149965901,11.16755822,85.89,85.851,1.31548599]
[1773149966275,11.16755822,85.89,85.86,11.16755822]
[1773149966695,11.16755822,85.89,85.861,11.64673134]
[1773149966905,11.16755822,85.89,85.856,11.64739621]
[1773149967083,11.16755822,85.87,85.84,11.16755822]
[1773149967279,1.43118961,85.886,85.841,1.31548599]
[1773149967479,11.16755822,85.91,85.871,1.31548599]
[1773149967680,11.16755822,85.91,85.805,285.53114618]
[1773149967681,11.16755822,85.9,85.86,11.16755822]
[1773149967992,11.16755822,85.88,85.85,11.16755822]
[1773149968299,11.16755822,85.88,85.845,1.31548599]
[1773149968502,11.16755822,85.87,85.833,1.31548599]
[1773149968686,11.16755822,85.86,85.834,11.65039494]
[1773149969000,11.64293448,85.889,85.85,11.16755822]
[1773149969181,11.16755822,85.87,85.841,1.31548599]
[1773149969385,11.16755822,85.87,85.834,11.65039494]
[1773149969897,11.16755822,85.86,85.83,1.31548599]
[1773149970081,11.16755822,85.87,85.831,1.31548599]
[1773149970513,11.64293448,85.889,85.851,1.31548599]
[1773149970681,1.43118961,85.891,85.851,1.31548599]
[1773149970682,11.64429022,85.879,85.851,1.31548599]
[1773149970884,11.64429022,85.879,85.84,11.16755822]
[1773149970885,11.16755822,85.87,85.84,11.16755822]
[1773149971182,11.64429022,85.879,85.84,51.94109036]
[1773149971386,11.16755822,85.88,85.85,1.31548599]
[1773149971387,22.81173902,85.88,85.85,1.31548599]
[1773149971587,22.81173902,85.88,85.84,24.13262482]
[1773149971588,11.16755822,85.87,85.84,24.13262482]
[1773149971786,22.81173902,85.88,85.85,11.16755822]
[1773149971980,11.16755822,85.88,85.85,11.16755822]
[1773149972386,11.16755822,85.88,85.85,12.48304421]
[1773149972792,11.64345159,85.886,85.851,12.96357395]
[1773149972990,11.16755822,85.88,85.851,1.31548599]
[1773149973303,11.16755822,85.88,85.846,11.64873412]
[1773149973500,11.16755822,85.88,85.85,11.16755822]
[1773149973701,11.16755822,85.89,85.851,1.43699281]
[1773149974013,11.16755822,85.87,85.846,11.64873412]
[1773149974194,11.16755822,85.88,85.841,11.6494449]
[1773149974395,12.62823442,85.9,85.861,1.43699281]
[1773149974586,46.53760911,85.952,85.861,1.43699281]
[1773149974587,11.16755822,85.89,85.861,1.43699281]
[1773149974782,11.16755822,85.89,85.862,11.6465957]
[1773149975047,11.64293448,85.889,85.86,11.16755822]
[1773149975306,11.64293448,85.889,85.851,1.43699281]
[1773149975689,11.16755822,85.88,85.851,1.43699281]
[1773149975884,11.64293448,85.889,85.851,1.43699281]
[1773149976087,11.64293448,85.889,85.815,46.61165302]
[1773149976088,11.16755822,85.88,85.839,1.43699281]
[1773149976403,11.16755822,85.88,85.84,22.81713883]
[1773149976595,11.16755822,85.88,85.841,1.43699281]
[1773149977002,11.16755822,85.88,85.851,11.64808796]
[1773149977309,29.10403225,85.899,85.861,1.43699281]
[1773149977491,11.64171459,85.898,85.861,1.43699281]
[1773149977699,11.64098262,85.904,85.861,1.43699281]
[1773149978010,11.16755822,85.9,85.861,1.43699281]
[1773149978205,11.16755822,85.9,85.87,11.16755822]
[1773149978506,11.16755822,85.9,85.871,1.43699281]
[1773149978726,1.4606762,85.918,85.88,11.16755822]
[1773149978727,11.63941104,85.915,85.88,11.16755822]
[1773149978899,11.63941104,85.915,85.881,1.43699281]
[1773149979097,11.63886916,85.919,85.883,1.43699281]
[1773149979498,11.16755822,85.91,85.872,11.64523942]
[1773149979803,1.4606762,85.918,85.872,11.64523942]
[1773149980006,11.16755822,85.91,85.872,40.75833798]
[1773149980214,11.16755822,85.9,85.873,1.43699281]
[1773149980384,40.73604207,85.919,85.881,1.43699281]
[1773149980385,11.63886916,85.919,85.881,1.43699281]
[1773149981090,11.16755822,85.92,85.892,1.43699281]
[1773149981301,11.16755822,85.92,85.887,11.64316361]
[1773149981616,11.16755822,85.92,85.89,11.16755822]
[1773149982326,11.16755822,85.92,85.888,11.64307004]
[1773149982493,11.16755822,85.92,85.89,12.60455103]
[1773149982695,11.63765012,85.928,85.891,1.43699281]
[1773149982894,3.69383402,85.955,85.888,40.75074515]
[1773149982895,11.16755822,85.94,85.91,11.16755822]
[1773149983189,93.01731622,86.006,85.921,1.43699281]
[1773149983190,11.16755822,85.95,85.921,1.43699281]
[1773149983402,40.7161387,85.961,85.921,1.43699281]
[1773149983609,11.16755822,85.95,85.921,1.43699281]
[1773149983806,11.16755822,85.95,85.872,46.58057734]
[1773149983807,1.4606762,85.94,85.899,1.43699281]
[1773149984011,1.4606762,85.94,85.9,1.43699281]
[1773149984012,11.16755822,85.93,85.9,1.43699281]
[1773149984213,1.4606762,85.94,85.901,1.43699281]
[1773149984214,11.16755822,85.94,85.901,1.43699281]
[1773149984690,40.7161387,85.961,85.881,40.75406666]
[1773149984691,40.7161387,85.961,85.92,12.60455103]
[1773149984894,11.16755822,85.96,85.921,1.43699281]
[1773149985210,1.4606762,85.949,85.911,1.43699281]
[1773149985411,11.63287811,85.964,85.93,11.16755822]
[1773149985716,11.16755822,85.97,85.94,11.16755822]
[1773149985903,11.63191748,85.971,85.94,11.16755822]
[1773149986216,11.63191748,85.971,85.904,87.30676102]
[1773149986217,11.63191748,85.971,85.95,11.16755822]
[1773149986414,58.13789509,86.003,85.92,11.16755822]
[1773149986415,11.16755822,85.99,85.96,11.16755822]
[1773149986594,11.16755822,86.01,85.98,11.16755822]
[1773149986912,52.06525735,86.0,85.921,1.32296536]
[1773149987112,22.99548991,86.0,85.961,11.63318248]
[1773149987412,11.62804218,85.999,85.962,1.32296536]
[1773149987619,11.62804218,85.999,85.97,11.16755822]
[1773149988097,11.36755822,86.0,85.96,11.16755822]
[1773149988098,11.16755822,85.99,85.96,11.16755822]
[1773149988415,11.16755822,85.99,85.902,50.25832551]
[1773149988416,11.16755822,85.97,85.923,1.32296536]
[1773149988601,11.16755822,85.96,85.923,1.32296536]
[1773149988914,3.69383402,85.995,85.922,11.63846279]
[1773149988915,11.16755822,85.98,85.951,1.32296536]
[1773149989108,11.16755822,85.97,85.94,11.16755822]
[1773149989313,11.16755822,85.98,85.951,1.32296536]
[1773149989515,11.16755822,85.98,85.942,1.32296536]
[1773149989700,11.16755822,85.98,85.95,11.16755822]
[1773149990097,11.6296447,85.988,85.951,1.32296536]
[1773149990304,11.16755822,85.98,85.951,1.32296536]
[1773149990617,11.16755822,85.98,85.941,12.95885509]
[1773149990814,11.16755822,85.98,85.951,1.32296536]
[1773149991107,11.6296447,85.988,85.96,11.16755822]
[1773149991314,11.6296447,85.988,85.951,1.32296536]
[1773149991514,0.2,86.0,85.951,1.32296536]
[1773149991515,1e-08,86.0,85.981,1.32296536]
[1773149991723,1e-08,86.0,85.954,11.63399611]
[1773149991724,11.62398726,86.029,85.991,1.32296536]
[1773149992019,0.2,86.03,86.0,11.16755822]
[1773149992212,40.88355514,86.03,85.993,1.32296536]
[1773149992413,52.05111336,86.03,85.993,1.32296536]
[1773149992611,52.05111336,86.03,85.954,11.63399611]
[1773149992612,0.2,86.03,86.01,11.16755822]
[1773149992821,0.2,86.03,86.02,11.16755822]
[1773149993005,11.62398726,86.029,85.958,1.32296536]
[1773149993306,11.62398726,86.029,85.92,11.16755822]
[1773149993307,11.62398726,86.029,86.001,1.32296536]
[1773149993502,11.62398726,86.029,85.99,11.16755822]
[1773149993711,11.62398726,86.029,86.0,11.16755822]
[1773149993905,11.16755822,86.02,85.99,11.16755822]
[1773149994105,11.16755822,86.01,85.936,1.32296536]
[1773149994329,11.16755822,86.0,85.964,1.32296536]
[1773149994508,11.16755822,86.0,85.933,40.72940546]
[1773149994509,11.16755822,85.97,85.94,11.16755822]
[1773149994708,1.33897027,85.985,85.939,1.32296536]
[1773149994899,1.33897027,85.985,85.94,11.16755822]
[1773149995220,11.63074704,85.979,85.941,11.63588973]
[1773149995422,11.63074704,85.979,85.941,12.95885509]
[1773149995623,11.63074704,85.979,85.942,1.32296536]
[1773149995824,1.33897027,86.01,85.971,1.32296536]
[1773149996007,11.16755822,86.0,85.971,1.32296536]
[1773149996408,12.50652849,86.01,85.971,1.32296536]
[1773149996605,11.16755822,86.02,85.99,11.16755822]
[1773149996811,11.16755822,86.01,85.98,12.49052358]
[1773149997613,11.62533858,86.019,85.99,11.16755822]
[1773149997819,11.62533858,86.019,85.981,1.32296536]
[1773149998019,11.62533858,86.019,85.952,40.72040207]
[1773149998020,11.16755822,86.01,85.97,11.16755822]
[1773149998520,11.16755822,86.01,85.98,11.16755822]
[1773149999037,11.62533858,86.019,85.98,11.16755822]
[1773149999215,11.16755822,86.01,85.97,12.49052358]
[1773149999422,11.62533858,86.019,85.952,40.72040207]
[1773149999423,11.16755822,86.0,85.96,11.16755822]
[1773149999727,11.16755822,85.99,85.958,1.32296536]
[1773150000230,1.33897027,85.979,85.933,1.32296536]
[1773150000432,11.16755822,85.94,85.898,11.64171459]
[1773150000620,1.33897027,85.949,85.899,1.32296536]
[1773150000931,3.69383402,85.977,85.898,40.74600106]
[1773150000932,1.33897027,85.962,85.92,11.16755822]
[1773150001109,11.16755822,85.95,85.92,11.16755822]
[1773150001426,11.16755822,85.95,85.898,40.74600106]
[1773150001427,1.33897027,85.969,85.93,11.16755822]
[1773150001731,1.33897027,85.969,85.878,46.57762703]
[1773150001732,11.16755822,85.95,85.912,1.32296536]
[1773150001919,11.16755822,85.94,85.913,11.639682]
[1773150002530,11.16755822,85.98,85.913,11.639682]
[1773150002531,1.33897027,86.028,85.931,1.32296536]
[1773150002729,11.16755822,85.98,85.931,1.32296536]
[1773150002946,133.67585349,86.029,85.941,1.32296536]
[1773150002947,11.16755822,85.97,85.941,1.32296536]
[1773150003237,1.33897027,85.989,85.93,1.32296536]
[1773150003409,11.16755822,85.95,85.914,1.32296536]
[1773150003607,11.16755822,85.98,85.866,46.58386684]
[1773150003608,1.43190444,85.943,85.896,1.33126243]
[1773150003810,1.43190444,85.932,85.87,11.16755822]
[1773150004031,1.43190444,85.932,85.849,238.79136621]
[1773150004032,11.16755822,85.92,85.881,1.33126243]
[1773150004335,1.43190444,85.944,85.881,1.33126243]
[1773150004506,11.16755822,85.91,85.891,1.33126243]
[1773150004709,11.16755822,85.91,85.88,11.16755822]
[1773150004912,11.16755822,85.91,85.875,1.33126243]
[1773150005136,11.16755822,85.9,85.861,1.33126243]
[1773150005329,11.16755822,85.89,85.861,1.33126243]
[1773150005529,11.16755822,85.9,85.863,1.33126243]
[1773150005831,11.16755822,85.89,85.863,1.33126243]
[1773150006215,11.16755822,85.88,85.862,11.6465957]
[1773150006412,1.43190444,85.908,85.862,40.76308495]
[1773150006616,46.52996524,85.967,85.863,1.33126243]
[1773150006617,11.63846279,85.922,85.863,1.33126243]
[1773150006930,11.16755822,85.88,85.863,1.33126243]
[1773150007109,11.16755822,85.88,85.842,1.33126243]
[1773150007309,11.16755822,85.87,85.842,1.33126243]
[1773150007508,11.16755822,85.89,85.863,1.33126243]
[1773150007720,11.16755822,85.88,85.862,11.6465957]
[1773150007923,1.43190444,85.909,85.862,11.6465957]
[1773150008123,1.43190444,85.952,85.871,1.33126243]
[1773150008433,1.43190444,85.952,85.87,11.16755822]
[1773150008434,11.16755822,85.9,85.881,1.33126243]
[1773150008613,11.16755822,85.91,85.881,1.33126243]
[1773150008929,11.16755822,85.92,85.891,1.33126243]
[1773150009131,1.43190444,85.942,85.891,1.33126243]
[1773150009334,1.43190444,85.955,85.901,1.33126243]
[1773150009536,11.16755822,85.95,85.922,11.63846279]
[1773150009713,11.16755822,85.96,85.931,1.33126243]
[1773150009913,11.16755822,85.96,85.922,11.63846279]
[1773150009914,1.43190444,85.996,85.941,1.33126243]
[1773150010119,46.69572123,86.03,85.937,1.33126243]
[1773150010120,11.16755822,85.97,85.937,1.33126243]
[1773150010332,11.16755822,85.98,85.941,1.33126243]
[1773150010633,11.16755822,86.01,85.97,11.16755822]
[1773150010838,11.16755822,86.02,85.99,11.16755822]
[1773150011021,0.2,86.03,85.954,1.33126243]
[1773150011022,11.16755822,86.0,85.954,1.33126243]
[1773150011218,11.16755822,86.0,85.961,1.33126243]
[1773150011414,11.16755822,86.0,85.96,11.16755822]
[1773150011415,11.16755822,86.0,85.971,1.33126243]
[1773150011621,11.16755822,86.0,85.962,40.71566506]
[1773150011817,1.43190444,86.028,85.971,1.33126243]
[1773150012017,11.16755822,86.02,85.981,1.33126243]
[1773150012223,11.16755822,86.01,85.981,1.33126243]
[1773150012628,11.16755822,86.0,85.981,1.33126243]
[1773150012823,11.16755822,86.02,85.981,1.33126243]
[1773150013042,11.16755822,86.02,85.98,11.16755822]
[1773150013043,1.43190444,86.069,85.98,11.16755822]
[1773150013253,1.43190444,86.069,85.962,288.70348944]
[1773150013254,1.43190444,86.067,85.963,1.33126243]
[1773150013549,11.16755822,86.07,86.031,1.33126243]
[1773150013714,11.16755822,86.06,86.032,11.62358192]
[1773150013921,11.16755822,86.06,86.033,1.33126243]
[1773150014532,29.04397375,86.077,85.972,3.69383402]
[1773150014533,11.61661265,86.084,86.041,1.33126243]
[1773150014835,104.71819735,86.11,86.032,11.62358192]
[1773150014836,11.16755822,86.07,86.038,1.33126243]
[1773150015041,11.16755822,86.06,86.038,1.33126243]
[1773150015231,1.43190444,86.086,86.038,1.33126243]
[1773150015232,11.16755822,86.07,86.038,1.33126243]
[1773150015426,11.16755822,86.06,86.032,11.62358192]
[1773150015739,1.43190444,86.074,86.011,11.62641987]
[1773150015740,11.16755822,86.05,86.011,11.62641987]
[1773150015939,11.61948176,86.063,86.021,1.33126243]
[1773150016247,11.16755822,86.05,86.021,1.33126243]
[1773150016744,1.43190444,86.088,86.031,1.33126243]
[1773150016919,46.43943884,86.134,86.011,238.34160744]
[1773150016920,11.16755822,86.09,86.05,12.49882065]
[1773150017120,11.16755822,86.08,86.051,1.33126243]
[1773150017616,11.16755822,86.09,86.06,11.16755822]
[1773150017838,11.16755822,86.1,86.062,1.33126243]
[1773150018041,52.38,86.139,86.071,1.33126243]
[1773150018042,1.43190444,86.128,86.071,1.33126243]
[1773150018240,1.43190444,86.128,86.081,1.33126243]
[1773150018418,11.16755822,86.13,86.101,1.33126243]
[1773150018620,52.38,86.139,86.09,12.49882065]
[1773150018621,11.16755822,86.12,86.09,12.49882065]
[1773150018820,11.16755822,86.12,86.061,40.66882792]
[1773150018821,11.60927813,86.138,86.081,1.33126243]
[1773150019040,11.16755822,86.11,86.081,1.33126243]
[1773150019242,52.38,86.139,86.101,1.33126243]
[1773150019428,11.16755822,86.13,86.101,1.33126243]
[1773150019630,11.10231929,86.13,86.091,1.33126243]
[1773150020142,11.10231929,86.16,86.121,1.33126243]
[1773150020341,1.43190444,86.195,86.15,11.10231929]
[1773150020527,29.00014334,86.207,86.151,1.33126243]
[1773150020719,29.00014334,86.207,86.1,11.10231929]
[1773150020720,11.60161003,86.195,86.161,1.33126243]
[1773150021225,1.43190444,86.209,86.161,1.33126243]
[1773150021438,28.99565599,86.22,86.093,4.82477569]
[1773150021439,11.10231929,86.17,86.093,1.33126243]
[1773150021639,11.80232321,86.19,86.092,226.50188169]
[1773150021640,17.30522686,86.14,86.111,1.33126243]
[1773150021833,17.30522686,86.15,86.12,18.63648929]
[1773150022044,17.30522686,86.15,86.121,12.94283219]
[1773150022243,1.43190444,86.163,86.11,18.63648929]
[1773150022545,11.60577503,86.164,86.1,17.30522686]
[1773150022546,1.43190444,86.149,86.1,17.30522686]
[1773150022727,1.43190444,86.149,86.081,1.33126243]
[1773150022937,17.30522686,86.13,86.1,17.30522686]
[1773150023242,17.30522686,86.13,86.082,29.04175455]
[1773150023243,17.30522686,86.15,86.11,17.30522686]
[1773150023423,1.43190444,86.165,86.111,1.33126243]
[1773150023623,17.30522686,86.14,86.101,1.33126243]
[1773150023847,1.43190444,86.139,86.086,1.33126243]
[1773150024027,11.60927813,86.138,86.087,11.61615574]
[1773150024233,17.30522686,86.13,86.09,17.30522686]
[1773150024433,17.30522686,86.13,86.087,11.61615574]
[1773150024434,1.43190444,86.151,86.101,1.33126243]
[1773150024635,1.43190444,86.151,86.1,17.30522686]
[1773150024636,17.30522686,86.12,86.094,1.33126243]
[1773150024826,17.30522686,86.12,86.087,11.61615574]
[1773150025025,1.43190444,86.146,86.1,17.30522686]
[1773150025237,1.43190444,86.146,86.087,98.73732385]
[1773150025238,17.30522686,86.13,86.101,1.33126243]
[1773150025747,40.62162694,86.161,86.087,40.65654511]
[1773150025748,17.30522686,86.12,86.091,1.33126243]
[1773150025954,17.30522686,86.12,86.042,3.69383402]
[1773150025955,17.30522686,86.1,86.062,1.33126243]
[1773150026462,46.43493203,86.143,86.032,191.78910171]
[1773150026463,1.43190444,86.139,86.091,1.33126243]
[1773150026752,40.61974119,86.165,86.11,17.30522686]
[1773150026753,17.30522686,86.14,86.11,17.30522686]
[1773150026958,17.30522686,86.14,86.101,1.33126243]
[1773150027328,17.30522686,86.14,86.052,3.69383402]
[1773150027329,1.43190444,86.152,86.111,1.33126243]
[1773150027598,17.30522686,86.16,86.121,1.33126243]
[1773150027765,17.30522686,86.16,86.117,1.33126243]
[1773150028053,46.4047945,86.198,86.111,11.61291821]
[1773150028054,17.30522686,86.14,86.111,11.61291821]
[1773150028435,17.30522686,86.15,86.12,17.30522686]
[1773150028948,17.30522686,86.15,86.112,1.33126243]
[1773150029143,17.30522686,86.15,86.12,18.63648929]
[1773150029530,1.43190444,86.17,86.13,18.63648929]
[1773150029531,17.30522686,86.17,86.13,18.63648929]
[1773150029852,17.30522686,86.17,86.111,11.61291821]
[1773150029853,11.60240866,86.189,86.151,1.33126243]
[1773150030040,11.60240866,86.189,86.096,1.16149414]
[1773150030041,11.60644854,86.159,86.124,11.61116529]
[1773150030241,17.30522686,86.15,86.124,11.61116529]
[1773150030442,11.60644854,86.159,86.124,11.61116529]
[1773150030631,17.30522686,86.16,86.125,1.33126243]
[1773150031056,17.30522686,86.16,86.124,11.61116529]
[1773150031057,0.2,86.19,86.131,1.33126243]
[1773150031258,0.2,86.19,86.124,40.63907853]
[1773150031259,17.50522686,86.19,86.16,18.63648929]
[1773150031475,17.50522686,86.19,86.124,191.58422737]
[1773150031476,1.43190444,86.232,86.181,1.33126243]
[1773150031675,46.37570161,86.253,86.171,1.33126243]
[1773150031676,17.30522686,86.21,86.171,1.33126243]
[1773150031878,17.30522686,86.21,86.135,3.69383402]
[1773150031879,17.30522686,86.22,86.19,17.30522686]
[1773150032053,17.30522686,86.23,86.191,1.33126243]
[1773150032381,17.30522686,86.23,86.157,46.42648302]
[1773150032382,1.43190444,86.219,86.18,17.30522686]
[1773150032671,11.59743,86.226,86.19,17.30522686]
[1773150033261,11.59743,86.226,86.166,12.93676808]
[1773150033262,17.30522686,86.21,86.166,12.93676808]
[1773150033459,1.43190444,86.219,86.17,17.30522686]
[1773150033669,1.43190444,86.219,86.18,17.30522686]
[1773150034250,1.44553509,86.209,86.163,11.6058311]
[1773150034449,11.59850611,86.218,86.181,1.38605537]
[1773150034783,11.59779419,86.224,86.19,17.30522686]
[1773150034977,1.44553509,86.262,86.21,17.30522686]
[1773150035180,17.30522686,86.25,86.201,1.38605537]
[1773150035381,1.44553509,86.249,86.201,1.38605537]
[1773150035586,18.75076195,86.24,86.2,17.30522686]
[1773150035880,18.75076195,86.24,86.19,1.38605537]
[1773150035881,18.75076195,86.23,86.19,18.69128223]
[1773150036087,17.30522686,86.22,86.178,1.38605537]
[1773150036263,17.30522686,86.22,86.131,3.69383402]
[1773150036264,1.44553509,86.209,86.161,11.60609553]
[1773150036464,17.30522686,86.2,86.161,11.60609553]
[1773150036760,1.44553509,86.202,86.161,11.60609553]
[1773150036761,1.44553509,86.202,86.17,17.30522686]
[1773150036962,17.30522686,86.21,86.17,17.30522686]
[1773150037161,1.44553509,86.209,86.17,18.69128223]
[1773150037385,1.44553509,86.209,86.17,17.30522686]
[1773150037672,1.44553509,86.189,86.155,11.60689495]
[1773150037873,1.44553509,86.189,86.142,11.60873905]
[1773150038051,1.44553509,86.189,86.141,1.38605537]
[1773150038052,17.30522686,86.18,86.141,1.38605537]
[1773150038254,11.60375497,86.179,86.14,17.30522686]
[1773150038475,3.69383402,86.207,86.093,191.6532122]
[1773150038476,1.44553509,86.207,86.161,1.38605537]
[1773150038651,1.44553509,86.209,86.161,1.38605537]
[1773150038977,1.44553509,86.235,86.181,1.38605537]
[1773150039281,1.44553509,86.235,86.122,4.82477569]
[1773150039282,1.44553509,86.235,86.2,17.30522686]
[1773150039486,1.44553509,86.235,86.19,17.30522686]
[1773150039779,1.44553509,86.229,86.19,17.30522686]
[1773150039974,17.30522686,86.24,86.2,17.30522686]
[1773150040278,17.30522686,86.24,86.126,1.16108956]
[1773150040279,28.98464571,86.253,86.21,17.30522686]
[1773150040579,28.98464571,86.253,86.201,1.38605537]
[1773150040580,17.30522686,86.3,86.201,1.38605537]
[1773150040779,26.23012129,86.38,86.217,1.38605537]
[1773150040780,1.44553509,86.268,86.217,1.38605537]
[1773150041076,1.44553509,86.268,86.22,17.30522686]
[1773150041259,1.44553509,86.259,86.21,17.30522686]
[1773150041677,1.44553509,86.249,86.2,11.07231687]
[1773150042181,11.07231687,86.28,86.184,11.60308177]
[1773150042182,1.44553509,86.228,86.184,11.60308177]
[1773150042510,1.44553509,86.219,86.18,11.07231687]
[1773150042794,1.44553509,86.269,86.208,1.38605537]
[1773150042953,11.07231687,86.24,86.193,1.38605537]
[1773150043273,12.51785196,86.24,86.193,1.38605537]
[1773150043478,11.07231687,86.22,86.178,1.38605537]
[1773150043773,11.07231687,86.25,86.21,11.07231687]
[1773150043976,4.82477569,86.291,86.2,11.07231687]
[1773150043977,1.44553509,86.249,86.2,11.07231687]
[1773150044178,11.59702652,86.229,86.19,11.07231687]
[1773150044556,11.07231687,86.22,86.182,11.60328326]
[1773150044758,1.44553509,86.219,86.182,11.60328326]
[1773150045100,1.44553509,86.219,86.18,11.07231687]
[1773150045371,1.44553509,86.219,86.143,46.43409959]
[1773150045372,1.44553509,86.209,86.17,11.07231687]
[1773150045962,1.44553509,86.209,86.17,12.45837224]
[1773150046165,1.44553509,86.209,86.155,40.62445591]
[1773150046166,1.47101886,86.252,86.173,1.41774617]
[1773150046483,2.47215037,102.88,86.18,11.07231687]
[1773150046484,1.47101886,86.219,86.18,11.07231687]
[1773150046662,1.47101886,86.219,86.171,40.61691288]
[1773150046663,12.54333573,86.21,86.171,11.60483225]
[1773150046857,1.47101886,86.244,86.19,11.07231687]
[1773150047054,1.47101886,86.244,86.181,1.41774617]
[1773150047055,1.47101886,86.229,86.181,1.41774617]
[1773150047266,1.47101886,86.229,86.19,11.07231687]
[1773150047474,11.07231687,86.24,86.191,1.41774617]
[1773150047778,1.47101886,86.239,86.191,1.41774617]
[1773150048077,1.47101886,86.239,86.171,40.61691288]
[1773150048078,11.07231687,86.22,86.181,1.41774617]
[1773150048282,11.59837158,86.219,86.182,11.60335104]
[1773150048461,1.47101886,86.218,86.182,11.60335104]
[1773150048658,46.37717544,86.25,86.182,11.60335104]
[1773150048659,11.5971682,86.228,86.19,11.07231687]
[1773150048859,11.5971682,86.228,86.191,1.41774617]
[1773150049068,11.59568176,86.239,86.2,11.07231687]
[1773150049381,11.59568176,86.239,86.201,1.41774617]
[1773150049680,11.59568176,86.239,86.19,12.49006304]
[1773150049681,11.07231687,86.23,86.19,12.49006304]
[1773150050187,11.59716101,86.228,86.191,11.60213943]
[1773150050381,1.47101886,86.26,86.21,11.07231687]
[1773150050587,1.47101886,86.26,86.221,1.41774617]
[1773150050588,11.07231687,86.26,86.221,1.41774617]
[1773150050882,11.59272731,86.261,86.191,87.01604574]
[1773150050883,11.07231687,86.24,86.2,11.07231687]
[1773150051484,46.36524322,86.272,86.191,40.60748801]
[1773150051485,11.07231687,86.26,86.221,1.41774617]
[1773150052065,40.57265487,86.265,86.221,1.41774617]
[1773150052499,40.57265487,86.265,86.222,11.59796803]
[1773150052500,11.07231687,86.26,86.222,11.59796803]
[1773150052794,1.47101886,86.249,86.211,11.59944786]